bitfinex/quotes_SOLUSD_20241028
["timestamp","ask_amount","ask_price","bid_price","bid_amount"]
[1730113642645,75.6318,177.57,177.53,10.98541463]
[1730113642966,70.0,177.55,177.51,10.98541463]
[1730113643169,80.98541463,177.55,177.5,10.98541463]
[1730113643562,70.0,177.55,177.5,10.98541463]
[1730113643764,70.0,177.53,177.44,5.6357]
[1730113644064,70.0,177.53,177.41,9.77097997]
[1730113644065,75.6329,177.53,177.5,10.98541463]
[1730113644264,20.0,177.52,177.49,10.98541463]
[1730113644445,70.25098,177.51,177.47,10.98541463]
[1730113645151,70.0,177.54,177.5,10.98541463]
[1730113645353,20.0,177.53,177.52,10.98541463]
[1730113645570,20.0,177.53,177.5,10.98541463]
[1730113645953,5.6331,177.52,177.49,10.98541463]
[1730113646164,16.61851463,177.52,177.47,10.98541463]
[1730113647248,16.61851463,177.52,177.47,16.61981463]
[1730113647447,86.61851463,177.52,177.47,16.61981463]
[1730113650772,86.61851463,177.52,177.46,10.98541463]
[1730113651654,86.61851463,177.52,177.47,5.6347]
[1730113652376,10.98541463,177.49,177.42,5.6363]
[1730113652673,80.98541463,177.48,177.42,5.6363]
[1730113652969,10.98541463,177.47,177.42,16.62171463]
[1730113653473,31.11090463,177.47,177.42,10.98541463]
[1730113653670,80.98541463,177.46,177.41,10.98541463]
[1730113653867,80.98541463,177.46,177.4,10.98541463]
[1730113655060,80.98541463,177.46,177.42,5.6363]
[1730113656379,80.98541463,177.46,177.41,10.98541463]
[1730113656380,86.62061463,177.46,177.41,16.62201463]
[1730113656672,86.62061463,177.46,177.41,5.6366]
[1730113657173,86.62061463,177.46,177.4,10.98541463]
[1730113657374,10.98541463,177.45,177.4,10.98541463]
[1730113658382,10.98541463,177.45,177.39,10.98541463]
[1730113659277,10.98541463,177.45,177.4,10.98541463]
[1730113660983,10.98541463,177.45,177.4,5.6369]
[1730113663885,75.6352,177.46,177.4,10.98541463]
[1730113664085,10.98541463,177.45,177.4,10.98541463]
[1730113668865,75.6352,177.46,177.41,16.62181463]
[1730113669157,10.98541463,177.45,177.41,5.6364]
[1730113670679,16.62081463,177.45,177.4,10.98541463]
[1730113670886,81.23639463,177.44,177.38,5.6376]
[1730113671103,10.98541463,177.4,177.34,5.83025914]
[1730113671392,10.98541463,177.39,177.34,10.98541463]
[1730113674390,10.98541463,177.39,177.35,5.6385]
[1730113675595,10.98541463,177.4,177.35,10.98541463]
[1730113676168,5.6368,177.41,177.36,10.98541463]
[1730113676371,20.25098,177.41,177.37,10.98541463]
[1730113677484,31.23639463,177.41,177.36,10.98541463]
[1730113677690,36.87319463,177.41,177.36,10.98541463]
[1730113678806,36.87319463,177.41,177.36,16.62361463]
[1730113682002,30.0,177.43,177.36,16.62361463]
[1730113682187,30.0,177.43,177.42,10.98541463]
[1730113683306,0.12549,177.47,177.42,10.98541463]
[1730113683477,0.25098,177.47,177.43,10.98541463]
[1730113684105,20.25098,177.47,177.43,10.98541463]
[1730113684289,90.25098,177.47,177.43,10.98541463]
[1730113684698,95.88578,177.47,177.43,10.98541463]
[1730113685706,95.88578,177.47,177.42,16.62151463]
[1730113686805,95.88578,177.47,177.43,10.98541463]
[1730113687790,95.88578,177.47,177.44,10.98541463]
[1730113688908,25.88578,177.47,177.44,10.98541463]
[1730113690490,95.88578,177.47,177.44,10.98541463]
[1730113690686,95.88578,177.47,177.43,10.98541463]
[1730113690885,70.0,177.45,177.41,10.98541463]
[1730113691094,0.25098,177.42,177.36,5.6382]
[1730113691412,80.98541463,177.41,177.36,10.98541463]
[1730113691706,70.0,177.41,177.37,10.98541463]
[1730113692489,75.6367,177.41,177.37,10.98541463]
[1730113692901,30.0,177.4,177.37,10.98541463]
[1730113694103,41.86388,177.42,177.38,10.98541463]
[1730113694300,41.86388,177.42,177.39,10.98541463]
[1730113694497,47.50028,177.42,177.39,10.98541463]
[1730113694894,47.00028,177.42,177.39,10.98541463]
[1730113696117,41.36388,177.42,177.39,10.98541463]
[1730113697093,41.36388,177.42,177.39,16.62261463]
[1730113697492,41.36388,177.42,177.39,10.98541463]
[1730113698200,41.36388,177.42,177.38,16.62291463]
[1730113700290,10.98541463,177.4,177.31,1.8137]
[1730113700495,80.98541463,177.39,177.31,5.6398]
[1730113700710,10.98541463,177.38,177.32,10.98541463]
[1730113701118,10.98541463,177.38,177.33,10.98541463]
[1730113701308,0.12549,177.38,177.34,10.98541463]
[1730113701510,5.76329,177.38,177.34,10.98541463]
[1730113704640,5.76239,177.41,177.37,10.98541463]
[1730113704814,20.0,177.4,177.37,10.98541463]
[1730113705333,20.0,177.4,177.36,10.98541463]
[1730113706917,20.0,177.4,177.36,16.62361463]
[1730113707118,90.0,177.4,177.36,10.98541463]
[1730113707325,95.637,177.4,177.36,10.98541463]
[1730113709234,95.637,177.4,177.36,16.62351463]
[1730113717039,90.0,177.4,177.37,10.98541463]
[1730113718535,20.0,177.4,177.37,10.98541463]
[1730113718736,20.0,177.41,177.37,10.98541463]
[1730113718942,20.0,177.41,177.38,5.6376]
[1730113719635,20.0,177.41,177.38,16.62301463]
[1730113720744,97.2493,177.42,177.38,16.62301463]
[1730113721421,91.6129,177.42,177.39,10.98541463]
[1730113721722,91.6129,177.42,177.38,5.6376]
[1730113721723,20.0,177.43,177.4,10.98541463]
[1730113722650,70.0,177.43,177.39,10.98541463]
[1730113724134,81.11090463,177.45,177.4,10.98541463]
[1730113724336,20.0,177.44,177.41,10.98541463]
[1730113724943,20.0,177.44,177.41,16.62191463]
[1730113725148,75.76089,177.45,177.41,16.62191463]
[1730113725844,70.12549,177.45,177.41,16.62191463]
[1730113726038,38.64411463,177.46,177.43,10.98541463]
[1730113726039,22.0236,177.46,177.43,10.98541463]
[1730113727050,30.0,177.44,177.43,10.98541463]
[1730113727529,92.0236,177.46,177.43,10.98541463]
[1730113728147,92.0236,177.46,177.42,16.62161463]
[1730113728729,92.0236,177.46,177.42,16.12161463]
[1730113729348,22.0236,177.46,177.43,10.98541463]
[1730113729550,92.0236,177.46,177.43,10.98541463]
[1730113730648,92.0236,177.46,177.42,10.98541463]
[1730113731439,92.0236,177.46,177.42,16.62161463]
[1730113734669,97.6586,177.46,177.42,16.62161463]
[1730113737654,97.6586,177.46,177.42,10.98541463]
[1730113737855,80.98541463,177.44,177.34,5.6388]
[1730113738061,10.98541463,177.43,177.38,10.98541463]
[1730113738372,60.98541463,177.41,177.36,10.98541463]
[1730113738845,10.98541463,177.4,177.35,10.98541463]
[1730113739355,10.98541463,177.4,177.36,5.6382]
[1730113739763,10.98541463,177.4,177.14,40.0468665]
[1730113739764,10.98541463,177.37,177.26,2.98030427]
[1730113739953,10.98541463,177.37,177.32,10.98541463]
[1730113740455,11.11090463,177.38,177.33,10.98541463]
[1730113740952,0.12549,177.38,177.33,16.62431463]
[1730113743053,0.12549,177.38,177.27,0.2]
[1730113743261,10.98541463,177.37,177.28,5.6407]
[1730113743451,10.98541463,177.37,177.32,10.98541463]
[1730113743636,80.98541463,177.37,177.32,10.98541463]
[1730113744854,80.98541463,177.37,177.32,16.62471463]
[1730113744855,86.62331463,177.37,177.32,16.62471463]
[1730113745254,80.98541463,177.37,177.32,16.62471463]
[1730113746443,80.98541463,177.37,177.32,10.98541463]
[1730113747165,70.0,177.37,177.33,10.98541463]
[1730113747453,30.0,177.36,177.33,10.98541463]
[1730113747653,30.0,177.36,177.33,16.62451463]
[1730113748159,70.0,177.37,177.33,16.62451463]
[1730113749967,70.0,177.37,177.34,10.98541463]
[1730113751658,70.0,177.37,177.33,10.98541463]
[1730113751862,70.0,177.37,177.33,16.62431463]
[1730113753262,80.98541463,177.37,177.32,10.98541463]
[1730113754484,86.62341463,177.37,177.33,5.6392]
[1730113755548,30.98541463,177.36,177.32,5.6395]
[1730113756254,30.0,177.35,177.32,5.6395]
[1730113759360,20.0,177.36,177.32,5.6395]
[1730113765663,20.0,177.36,177.32,16.62491463]
[1730113765984,6.3992,177.39,177.35,10.98541463]
[1730113766188,6.3992,177.39,177.36,10.98541463]
[1730113766478,92.77391463,177.43,177.38,10.98541463]
[1730113766679,81.7885,177.43,177.39,10.98541463]
[1730113767282,76.1522,177.43,177.39,10.98541463]
[1730113767577,6.1522,177.43,177.4,10.98541463]
[1730113767792,15.3577,177.44,177.42,10.98541463]
[1730113768159,30.0,177.43,177.42,10.98541463]
[1730113768565,15.3577,177.44,177.42,10.98541463]
[1730113768780,15.3577,177.44,177.43,10.98541463]
[1730113769167,45.3577,177.44,177.43,10.98541463]
[1730113769370,30.0,177.44,177.43,10.98541463]
[1730113769573,70.0,177.45,177.43,10.98541463]
[1730113770059,70.0,177.45,177.36,20.0]
[1730113770268,70.0,177.45,177.41,10.98541463]
[1730113771080,75.6353,177.45,177.41,10.98541463]
[1730113774864,70.0,177.43,177.33,5.6392]
[1730113775058,20.0,177.42,177.38,10.98541463]
[1730113775262,85.473,177.41,177.37,10.98541463]
[1730113775875,91.5894,177.41,177.37,10.98541463]
[1730113776083,91.5894,177.41,177.33,5.6392]
[1730113776084,20.0,177.4,177.36,10.98541463]
[1730113776286,20.0,177.4,177.35,10.98541463]
[1730113776287,70.0,177.39,177.35,10.98541463]
[1730113776492,5.6376,177.38,177.34,10.98541463]
[1730113776978,5.6376,177.38,177.33,5.6392]
[1730113776979,90.0,177.37,177.33,10.98541463]
[1730113777179,100.98541463,177.37,177.32,10.98541463]
[1730113778186,90.0,177.37,177.33,10.98541463]
[1730113778808,95.6381,177.37,177.33,10.98541463]
[1730113780775,106.62351463,177.37,177.32,10.98541463]
[1730113782503,106.62351463,177.37,177.31,5.6397]
[1730113782504,30.0,177.36,177.33,10.98541463]
[1730113783805,30.0,177.36,177.31,5.6397]
[1730113784100,30.0,177.36,177.33,10.98541463]
[1730113784799,95.6381,177.37,177.33,10.98541463]
[1730113786703,95.6381,177.37,177.32,10.98541463]
[1730113787996,95.6381,177.37,177.32,16.62481463]
[1730113792094,90.0,177.37,177.26,25.8414]
[1730113792300,20.0,177.4,177.36,10.98541463]
[1730113792483,91.5894,177.41,177.38,10.98541463]
[1730113792686,91.5894,177.41,177.3,43.94165852]
[1730113792687,3.75138708,177.4,177.37,10.98541463]
[1730113793007,97.2261,177.41,177.37,10.98541463]
[1730113793182,91.5894,177.41,177.37,10.98541463]
[1730113793503,21.5894,177.41,177.38,10.98541463]
[1730113793683,21.5894,177.41,177.39,10.98541463]
[1730113794208,75.636,177.43,177.4,10.98541463]
[1730113794385,3.75060249,177.42,177.39,10.98541463]
[1730113794587,75.636,177.43,177.4,10.98541463]
[1730113794806,3.75061356,177.42,177.4,10.98541463]
[1730113794985,75.636,177.43,177.4,10.98541463]
[1730113795181,3.75062288,177.42,177.4,10.98541463]
[1730113795392,75.636,177.43,177.4,10.98541463]
[1730113795585,3.75020071,177.42,177.4,10.98541463]
[1730113795801,75.636,177.43,177.39,16.62261463]
[1730113795979,3.75001592,177.42,177.39,16.62261463]
[1730113796184,75.636,177.43,177.39,16.62261463]
[1730113796405,3.74979765,177.42,177.39,16.62261463]
[1730113796585,75.636,177.43,177.39,16.62261463]
[1730113796787,75.636,177.43,177.4,10.98541463]
[1730113797108,3.74970643,177.42,177.4,10.98541463]
[1730113797308,75.636,177.43,177.4,10.98541463]
[1730113797505,3.74960207,177.42,177.4,10.98541463]
[1730113797802,75.636,177.43,177.4,10.98541463]
[1730113798006,3.74959144,177.42,177.4,10.98541463]
[1730113798210,75.636,177.43,177.4,10.98541463]
[1730113798385,3.74945279,177.42,177.4,10.98541463]
[1730113798585,75.636,177.43,177.4,10.98541463]
[1730113798788,3.74945206,177.42,177.4,10.98541463]
[1730113798985,75.636,177.43,177.4,10.98541463]
[1730113799181,3.74944881,177.42,177.4,10.98541463]
[1730113799493,75.636,177.43,177.4,10.98541463]
[1730113799801,3.74938634,177.42,177.4,10.98541463]
[1730113800002,75.636,177.43,177.4,10.98541463]
[1730113800206,3.74945687,177.42,177.4,10.98541463]
[1730113800413,75.636,177.43,177.32,0.2]
[1730113800414,75.636,177.43,177.39,10.98541463]
[1730113800703,34.73475874,177.42,177.37,10.98541463]
[1730113800885,30.98541463,177.42,177.37,10.98541463]
[1730113801203,70.0,177.4,177.36,10.98541463]
[1730113801403,80.98541463,177.4,177.34,10.98541463]
[1730113802405,5.6372,177.39,177.34,16.62411463]
[1730113802604,5.6372,177.39,177.35,10.98541463]
[1730113804304,5.6372,177.39,177.35,16.62391463]
[1730113804504,5.6372,177.39,177.35,5.6385]
[1730113804688,5.6372,177.39,177.35,16.62391463]
[1730113804887,5.6372,177.39,177.35,5.6385]
[1730113805108,5.6372,177.39,177.35,16.62391463]
[1730113807218,5.6372,177.39,177.37,10.98541463]
[1730113808091,0.12549,177.41,177.37,10.98541463]
[1730113808292,25.6369,177.4,177.37,10.98541463]
[1730113808506,95.6369,177.4,177.37,10.98541463]
[1730113808806,95.6369,177.4,177.36,10.98541463]
[1730113809507,70.0,177.38,177.34,10.98541463]
[1730113810316,75.6377,177.38,177.34,10.98541463]
[1730113810688,0.25098,177.39,177.35,10.98541463]
[1730113810891,95.637,177.4,177.36,10.98541463]
[1730113812412,95.637,177.4,177.37,10.98541463]
[1730113812603,25.637,177.4,177.37,10.98541463]
[1730113812810,5.637,177.4,177.37,10.98541463]
[1730113813509,24.027864,177.43,177.39,10.98541463]
[1730113813711,3.747891,177.42,177.4,10.98541463]
[1730113814013,75.6357,177.44,177.4,10.98541463]
[1730113814215,29.38404436,177.43,177.4,10.98541463]
[1730113814513,3.74804436,177.42,177.4,10.98541463]
[1730113814887,3.74804436,177.42,177.41,10.98541463]
[1730113815087,22.0551,177.45,177.41,10.98541463]
[1730113815283,3.74806634,177.44,177.43,10.98541463]
[1730113816303,3.74806634,177.44,177.43,16.62141463]
[1730113816491,70.0,177.46,177.37,5.6379]
[1730113816691,3.74844982,177.45,177.42,10.98541463]
[1730113816890,70.0,177.46,177.42,10.98541463]
[1730113817108,3.74843582,177.45,177.42,10.98541463]
[1730113817317,70.0,177.46,177.42,10.98541463]
[1730113817616,3.74809221,177.45,177.42,10.98541463]
[1730113817793,70.0,177.46,177.42,10.98541463]
[1730113817990,70.0,177.44,177.37,5.6379]
[1730113818296,80.98541463,177.44,177.39,10.98541463]
[1730113819015,80.98541463,177.44,177.39,16.62241463]
[1730113819594,70.0,177.44,177.4,10.98541463]
[1730113820395,70.0,177.44,177.42,10.98541463]
[1730113828016,6.01157,177.46,177.43,10.98541463]
[1730113829307,70.0,177.45,177.42,10.98541463]
[1730113829630,70.0,177.45,177.35,5.6385]
[1730113829824,70.0,177.45,177.42,10.98541463]
[1730113830332,75.6346,177.48,177.44,10.98541463]
[1730113830511,3.74326597,177.47,177.45,10.98541463]
[1730113830718,75.6346,177.48,177.45,10.98541463]
[1730113831032,3.74328337,177.47,177.45,10.98541463]
[1730113831230,75.6346,177.48,177.45,10.98541463]
[1730113831528,3.74312015,177.47,177.45,10.98541463]
[1730113831705,70.0,177.52,177.46,10.98541463]
[1730113831904,70.0,177.54,177.51,10.98541463]
[1730113832242,9.73131219,177.53,177.51,10.98541463]
[1730113832417,3.74281238,177.52,177.51,10.98541463]
[1730113833108,3.74281238,177.52,177.51,16.61881463]
[1730113833825,3.74187726,177.52,177.51,16.61881463]
[1730113834035,70.0,177.56,177.51,16.61881463]
[1730113834231,3.74174077,177.55,177.54,10.98541463]
[1730113834533,70.0,177.56,177.54,10.98541463]
[1730113834837,23.1247,177.57,177.55,10.98541463]
[1730113835010,3.73989853,177.56,177.55,10.98541463]
[1730113835330,23.1247,177.57,177.55,10.98541463]
[1730113835521,70.0,177.58,177.55,16.61751463]
[1730113835707,3.73754271,177.57,177.55,16.61751463]
[1730113835911,70.0,177.58,177.55,16.61751463]
[1730113836214,70.0,177.6,177.56,10.98541463]
[1730113836528,9.71252461,177.59,177.56,10.98541463]
[1730113836918,9.71252461,177.59,177.57,10.98541463]
[1730113837103,3.73558639,177.58,177.56,10.98541463]
[1730113837308,70.0,177.6,177.57,10.98541463]
[1730113837507,3.73447934,177.59,177.57,10.98541463]
[1730113837732,3.73447934,177.58,177.57,10.98541463]
[1730113838332,70.0,177.6,177.57,10.98541463]
[1730113838535,3.73290267,177.59,177.57,10.98541463]
[1730113838713,70.0,177.6,177.57,10.98541463]
[1730113838913,3.73299035,177.59,177.57,10.98541463]
[1730113839127,70.0,177.6,177.57,10.98541463]
[1730113839434,70.0,177.58,177.49,5.6341]
[1730113839609,70.0,177.58,177.54,10.98541463]
[1730113840709,70.0,177.58,177.55,10.98541463]
[1730113841635,70.0,177.58,177.54,10.98541463]
[1730113842310,75.6312,177.58,177.54,10.98541463]
[1730113843128,86.61661463,177.58,177.53,10.98541463]
[1730113844522,80.98541463,177.56,177.51,10.98541463]
[1730113844846,86.61741463,177.56,177.51,10.98541463]
[1730113845346,10.98541463,177.53,177.43,1.9137]
[1730113845516,10.98541463,177.53,177.48,10.98541463]
[1730113845919,10.98541463,177.52,177.47,10.98541463]
[1730113846646,10.98541463,177.52,177.47,16.62001463]
[1730113846818,16.61861463,177.52,177.47,16.62001463]
[1730113847213,86.61861463,177.52,177.47,10.98541463]
[1730113847441,10.98541463,177.51,177.46,10.98541463]
[1730113848640,5.6338,177.5,177.46,10.98541463]
[1730113851030,5.6338,177.5,177.46,16.62041463]
[1730113851244,5.6334,177.52,177.48,10.98541463]
[1730113851420,5.6334,177.52,177.49,10.98541463]
[1730113852341,20.0,177.53,177.5,10.98541463]
[1730113852719,20.0,177.53,177.49,10.98541463]
[1730113853442,93.08751463,177.54,177.49,10.98541463]
[1730113854152,82.1021,177.54,177.49,10.98541463]
[1730113854443,6.4693,177.54,177.51,10.98541463]
[1730113854644,12.1018,177.54,177.51,10.98541463]
[1730113855341,6.4693,177.54,177.51,10.98541463]
[1730113856325,12.1018,177.54,177.5,16.61911463]
[1730113857722,12.1018,177.54,177.5,10.98541463]
[1730113860250,93.08721463,177.54,177.49,10.98541463]
[1730113860428,80.98541463,177.5,177.43,5.636]
[1730113860625,80.98541463,177.5,177.45,10.98541463]
[1730113860828,10.98541463,177.49,177.45,10.98541463]
[1730113861627,5.6342,177.49,177.45,10.98541463]
[1730113863950,5.6342,177.49,177.39,47.55485852]
[1730113864148,20.0,177.51,177.48,10.98541463]
[1730113864355,30.0,177.49,177.47,10.98541463]
[1730113865033,30.0,177.49,177.48,10.98541463]
[1730113865232,86.61861463,177.52,177.48,10.98541463]
[1730113865459,75.6332,177.52,177.48,10.98541463]
[1730113865955,5.6332,177.52,177.48,10.98541463]
[1730113868954,10.98541463,177.5,177.45,10.98541463]
[1730113870054,86.61951463,177.5,177.45,10.98541463]
[1730113874461,75.6341,177.5,177.46,10.98541463]
[1730113875846,5.6334,177.52,177.49,10.98541463]
[1730113877065,16.61881463,177.52,177.47,10.98541463]
[1730113877245,10.98541463,177.49,177.44,10.98541463]
[1730113879462,16.61971463,177.49,177.44,16.62101463]
[1730113880354,16.61971463,177.49,177.44,5.6356]
[1730113880656,16.61971463,177.49,177.44,10.98541463]
[1730113880859,5.6343,177.49,177.45,10.98541463]
[1730113883344,5.6343,177.49,177.44,5.6355]
[1730113883345,5.6343,177.49,177.46,10.98541463]
[1730113884149,20.0,177.5,177.46,10.98541463]
[1730113884350,36.61921463,177.5,177.45,10.98541463]
[1730113886866,5.6338,177.5,177.46,10.98541463]
[1730113887739,70.12549,177.53,177.49,10.98541463]
[1730113887944,3.74996974,177.52,177.5,10.98541463]
[1730113888163,5.6331,177.52,177.49,10.98541463]
[1730113888371,3.75057253,177.51,177.49,10.98541463]
[1730113888575,5.6331,177.52,177.49,10.98541463]
[1730113888874,3.75049632,177.51,177.49,10.98541463]
[1730113889169,6.4693,177.54,177.5,10.98541463]
[1730113889352,3.75050185,177.53,177.5,10.98541463]
[1730113889555,6.4693,177.54,177.5,10.98541463]
[1730113889865,3.7510335,177.53,177.48,43.94165852]
[1730113890044,20.9245,177.55,177.52,10.98541463]
[1730113890365,3.75102492,177.54,177.53,10.98541463]
[1730113891467,3.75102492,177.54,177.52,10.98541463]
[1730113891669,15.2923,177.55,177.52,10.98541463]
[1730113891853,3.75254226,177.54,177.52,10.98541463]
[1730113892169,15.2923,177.55,177.52,10.98541463]
[1730113892373,3.75213326,177.54,177.52,10.98541463]
[1730113892562,15.2923,177.55,177.52,10.98541463]
[1730113892764,3.75213675,177.54,177.52,10.98541463]
[1730113892962,15.2923,177.55,177.52,10.98541463]
[1730113893163,3.75213632,177.54,177.53,10.98541463]
[1730113893368,15.2923,177.55,177.53,10.98541463]
[1730113893678,3.75216082,177.54,177.53,10.98541463]
[1730113894171,15.2923,177.55,177.53,10.98541463]
[1730113894547,3.75163942,177.54,177.53,10.98541463]
[1730113897950,5.6316,177.57,177.53,10.98541463]
[1730113898169,9.75036603,177.56,177.54,10.98541463]
[1730113898368,3.75014078,177.55,177.54,10.98541463]
[1730113899569,3.75014078,177.55,177.53,10.98541463]
[1730113899787,3.75096962,177.54,177.52,10.98541463]
[1730113900083,5.6324,177.55,177.52,10.98541463]
[1730113900254,3.75090317,177.54,177.52,10.98541463]
[1730113900562,5.6324,177.55,177.52,10.98541463]
[1730113900757,3.75078735,177.54,177.52,10.98541463]
[1730113900955,5.6324,177.55,177.52,10.98541463]
[1730113901162,3.75074171,177.54,177.52,10.98541463]
[1730113901477,5.6324,177.55,177.52,10.98541463]
[1730113901667,96.36977581,177.54,177.42,23.876884]
[1730113901871,10.98541463,177.51,177.42,5.6363]
[1730113902067,10.98541463,177.49,177.42,5.6363]
[1730113902288,10.98541463,177.49,177.44,10.98541463]
[1730113902969,16.61951463,177.49,177.44,16.62091463]
[1730113903158,33.75091133,177.48,177.44,16.62091463]
[1730113903476,10.98541463,177.46,177.37,5.6379]
[1730113903668,10.98541463,177.46,177.41,10.98541463]
[1730113903669,26.88551463,177.46,177.41,10.98541463]
[1730113903862,10.98541463,177.45,177.37,5.6379]
[1730113904066,10.98541463,177.44,177.39,10.98541463]
[1730113904984,16.62091463,177.45,177.4,10.98541463]
[1730113905476,5.6355,177.45,177.4,10.98541463]
[1730113905651,5.6355,177.45,177.41,10.98541463]
[1730113906673,15.9001,177.46,177.44,10.98541463]
[1730113906879,30.0,177.45,177.44,10.98541463]
[1730113907358,30.0,177.45,177.43,10.98541463]
[1730113908179,30.0,177.45,177.42,10.98541463]
[1730113908358,30.0,177.45,177.43,10.98541463]
[1730113908684,80.98541463,177.49,177.44,10.98541463]
[1730113909278,70.0,177.49,177.44,10.98541463]
[1730113909581,80.98541463,177.49,177.44,10.98541463]
[1730113909757,15.168,177.5,177.47,10.98541463]
[1730113909955,15.168,177.5,177.48,10.98541463]
[1730113910860,30.0,177.49,177.48,10.98541463]
[1730113911061,15.168,177.5,177.48,10.98541463]
[1730113913865,6.6066,177.51,177.48,10.98541463]
[1730113914190,29.409684,177.53,177.49,10.98541463]
[1730113914479,3.74647073,177.52,177.49,10.98541463]
[1730113914678,3.74647073,177.51,177.49,10.98541463]
[1730113914978,29.409684,177.53,177.49,10.98541463]
[1730113915185,73.74653806,177.52,177.48,10.98541463]
[1730113915387,3.74653806,177.51,177.48,10.98541463]
[1730113917085,5.6338,177.5,177.47,10.98541463]
[1730113917383,5.6338,177.5,177.46,10.98541463]
[1730113918178,5.6334,177.51,177.46,10.98541463]
[1730113918384,5.6334,177.51,177.45,5.6352]
[1730113918385,5.6334,177.51,177.47,10.98541463]
[1730113926390,5.6334,177.51,177.48,10.98541463]
[1730113930462,5.6334,177.51,177.45,5.6352]
[1730113930463,5.6334,177.51,177.42,20.0]
[1730113930666,5.6334,177.51,177.46,10.98541463]
[1730113931273,87.35529463,177.5,177.45,10.98541463]
[1730113931590,10.98541463,177.48,177.43,10.98541463]
[1730113931978,10.98541463,177.49,177.44,10.98541463]
[1730113932180,87.35529463,177.5,177.45,10.98541463]
[1730113933098,5.6341,177.49,177.45,10.98541463]
[1730113933793,70.25098,177.48,177.44,10.98541463]
[1730113934092,70.25098,177.48,177.43,10.98541463]
[1730113934479,10.98541463,177.47,177.42,10.98541463]
[1730113934685,10.98541463,177.46,177.41,16.62191463]
[1730113934992,10.98541463,177.46,177.41,10.98541463]
[1730113935187,5.6353,177.45,177.41,10.98541463]
[1730113936491,10.98541463,177.43,177.36,5.6382]
[1730113936683,10.98541463,177.43,177.38,10.98541463]
[1730113937078,70.25098,177.44,177.4,10.98541463]
[1730113937593,43.776884,177.47,177.42,10.98541463]
[1730113937897,0.25098,177.46,177.43,10.98541463]
[1730113938995,5.88608,177.46,177.42,10.98541463]
[1730113939383,75.88608,177.46,177.42,10.98541463]
[1730113940999,0.25098,177.47,177.43,10.98541463]
[1730113942104,0.25098,177.47,177.44,10.98541463]
[1730113942600,0.25098,177.47,177.43,10.98541463]
[1730113942794,5.88568,177.47,177.43,10.98541463]
[1730113946292,3.75904095,177.46,177.43,10.98541463]
[1730113946603,5.88568,177.47,177.43,10.98541463]
[1730113946902,3.75855352,177.46,177.44,10.98541463]
[1730113947203,5.88568,177.47,177.44,10.98541463]
[1730113947394,3.75970827,177.46,177.44,10.98541463]
[1730113947598,5.88568,177.47,177.44,10.98541463]
[1730113948112,7.51951819,177.46,177.44,10.98541463]
[1730113948285,3.75981674,177.46,177.44,10.98541463]
[1730113950403,3.75981674,177.46,177.42,5.6362]
[1730113950404,3.75981674,177.46,177.43,10.98541463]
[1730113954095,3.75981674,177.46,177.44,10.98541463]
[1730113957010,3.75981674,177.46,177.43,10.98541463]
[1730113957894,3.75981674,177.46,177.42,16.62141463]
[1730113958907,3.75981674,177.46,177.42,10.98541463]
[1730113960089,3.75981674,177.46,177.42,16.62141463]
[1730113960294,3.75981674,177.46,177.43,10.98541463]
[1730113960616,3.75981674,177.46,177.45,10.98541463]
[1730113961905,85.0464,177.48,177.45,10.98541463]
[1730113962112,3.75575216,177.47,177.44,10.98541463]
[1730113962419,101.66631463,177.48,177.43,16.62121463]
[1730113962589,3.75599217,177.47,177.43,16.62121463]
[1730113962784,101.66631463,177.48,177.43,16.62121463]
[1730113963012,3.75625005,177.47,177.43,16.62121463]
[1730113963196,101.66631463,177.48,177.43,16.62121463]
[1730113963395,3.75645362,177.47,177.43,16.62121463]
[1730113963596,101.66631463,177.48,177.43,16.62121463]
[1730113963814,3.75654615,177.47,177.43,16.62121463]
[1730113964024,101.66631463,177.48,177.43,16.62121463]
[1730113964223,3.75660591,177.47,177.43,16.62121463]
[1730113964393,101.66631463,177.48,177.43,16.62121463]
[1730113964597,3.75676329,177.47,177.43,16.62121463]
[1730113964910,101.66631463,177.48,177.43,16.62121463]
[1730113965218,10.98541463,177.46,177.41,10.98541463]
[1730113965517,81.23639463,177.45,177.4,10.98541463]
[1730113965711,10.98541463,177.44,177.39,10.98541463]
[1730113966214,20.12549,177.47,177.42,10.98541463]
[1730113966215,90.0,177.47,177.42,10.98541463]
[1730113966426,20.0,177.47,177.45,10.98541463]
[1730113966715,30.0,177.46,177.44,10.98541463]